{"text_format":"1","workbook":"xlsx","n_sheets":4,"sheets":["Notice formulaire","Formulaire RJD solde _Public ","Formulaire RJD interm _Entr ","Formulaire RJD solde _Entr "],"not_rendered":{"charts":0,"images":3,"macros":1,"external_links":0,"defined_names":8,"comments":1,"pivot_tables":0},"unopened":[],"bounds":{"document_bytes":16777216,"sheet_cells":100000,"rows_first":2000,"rows_last":500,"rows_between":2000,"halvings":0,"cell_chars":16384,"cell_head_chars":4096},"cells_cut":0,"cells_raw":0,"read":"whole","date_system":"1900"}

{"sheet":"Notice formulaire","index":0,"n_rows":21,"n_cols":12,"rows_kept":21,"cut":false,"hidden":false,"merged":[[0,0,0,11]]}
["Relevé des dépenses afférentes à l'acte attributif"]
[]
[]
[]
[]
[]
[]
[]
[]
[]
[]
[]
[]
[]
[]
[]
[]
[]
[null,null,null,null,null,null,null,null,null,null,null,true]
[null,null,null,null,null,null,null,null,null,null,null,true]
[null,null,null,null,null,null,null,null,null,null,null,false]

{"sheet":"Formulaire RJD solde _Public ","index":1,"n_rows":161,"n_cols":22,"rows_kept":161,"cut":false,"hidden":false,"merged":[[149,1,149,2],[149,3,149,4],[149,5,149,7],[150,1,150,2],[150,3,150,4],[150,5,150,7],[138,0,150,0],[117,0,129,0],[140,1,140,2],[140,3,140,4],[140,5,140,7],[141,1,141,2],[141,3,141,4],[141,5,141,7],[148,1,148,2],[148,3,148,4],[148,5,148,7],[142,1,142,2],[137,3,137,4],[137,5,137,7],[138,3,138,4],[138,5,138,7],[142,3,142,4],[142,5,142,7],[97,1,97,2],[98,1,98,2],[99,1,99,2],[98,3,98,6],[99,3,99,6],[117,3,117,7],[100,1,100,2],[118,3,118,7],[100,3,100,6],[101,3,101,6],[102,3,102,6],[108,1,108,2],[108,3,108,7],[109,1,109,2],[109,3,109,7],[116,1,116,2],[117,1,117,2],[118,1,118,2],[151,1,151,2],[151,3,151,4],[151,5,151,7],[152,3,152,7],[89,1,89,4],[84,1,84,2],[84,3,84,4],[93,1,93,2],[93,3,93,6],[94,3,94,6],[95,3,95,6],[96,3,96,6],[97,3,97,6],[138,1,138,2],[102,1,102,2],[106,1,106,2],[107,1,107,2],[101,1,101,2],[139,1,139,2],[139,3,139,4],[139,5,139,7],[94,1,94,2],[95,1,95,2],[96,1,96,2],[129,1,129,2],[130,1,130,2],[120,3,120,7],[143,3,143,7],[146,1,146,2],[146,3,146,4],[146,5,146,7],[147,1,147,2],[147,3,147,4],[147,5,147,7],[137,1,137,2],[119,1,119,2],[121,1,121,2],[120,1,120,2],[119,3,119,7],[121,3,121,7],[122,3,122,7],[55,1,55,2],[56,1,56,2],[57,1,57,2],[70,1,70,2],[71,1,71,2],[72,1,72,2],[60,1,60,2],[58,1,58,2],[59,1,59,2],[58,3,58,5],[59,3,59,5],[61,1,61,2],[61,3,61,5],[62,1,62,2],[62,3,62,5],[66,3,66,6],[67,3,67,6],[68,3,68,6],[63,1,63,5],[69,3,69,6],[70,3,70,6],[71,3,71,6],[85,3,85,4],[86,1,86,2],[86,3,86,4],[87,1,87,2],[87,3,87,4],[92,1,92,2],[81,3,82,4],[72,3,72,6],[73,3,73,6],[74,3,74,6],[75,3,75,6],[76,3,76,6],[77,3,77,6],[92,3,92,6],[74,1,74,2],[75,1,75,2],[76,1,76,2],[88,1,88,2],[83,1,83,2],[164,7,164,9],[154,6,154,8],[125,3,125,7],[88,3,88,4],[81,6,82,6],[81,7,81,9],[81,5,82,5],[78,1,78,7],[81,1,82,2],[83,3,83,4],[92,9,103,9],[129,3,129,7],[130,3,130,7],[131,3,131,7],[85,1,85,2],[103,3,103,7],[106,3,106,7],[126,3,126,7],[127,3,127,7],[128,3,128,7],[107,3,107,7],[110,3,110,7],[116,3,116,7],[154,1,154,3],[54,3,54,5],[52,1,52,2],[53,1,53,2],[54,1,54,2],[15,4,16,4],[15,5,16,5],[45,3,45,5],[46,3,46,5],[47,3,47,5],[44,1,44,2],[41,0,41,9],[31,4,32,4],[29,1,29,4],[15,6,16,6],[44,3,44,5],[51,3,51,5],[52,3,52,5],[47,1,47,2],[15,2,15,3],[48,1,48,5],[53,3,53,5],[34,4,35,4],[15,7,16,7],[0,2,0,9],[127,1,127,2],[128,1,128,2],[6,5,6,8],[66,1,66,2],[67,1,67,2],[125,1,125,2],[126,1,126,2],[68,1,68,2],[69,1,69,2],[73,1,73,2],[51,1,51,2],[55,3,55,5],[56,3,56,5],[57,3,57,5],[60,3,60,5],[45,1,45,2],[46,1,46,2],[77,1,77,2],[3,6,3,7],[12,6,12,8],[15,8,16,8],[7,5,7,8],[5,5,5,8]]}
[null,null,"Relevé des dépenses afférentes à l'acte attributif"]
[null,null,null,null,null,null,null,null,null,null,null,null,null,null,null,null,null,null,"Type relevé"]
[null,null,null,null,null,null,null,null,null,null,null,null,null,null,null,null,null,null,"SOLDE"]
[null,null,null,null,null,"Type de relevé de dépenses : ","SOLDE"]
[]
[null,null,null,"Acronyme du projet : ",null,null,null,null,null,null,null,null,"Laboratoire public"]
[null,null,null,"Bénéficiaire de la convention : ",null,null,null,null,null,null,null,null,"Fondation"]
[null,null,null,"N° de l'acte attributif : ",null,null,null,null,null,null,null,null,"Divers public"]
[null,null,null,"Période du relevé de dépenses  :",null,"Date début administrative",null,"Date fin scientifique"]
[null,null,null,null,null,null,null,null,null,null,null,null,null,null,null,"Genre","Titre","Catégorie de partenaire","Catégorie budgétaire","Taux de frais",null,"Type unité"]
[null,null,null,"Date du présent relevé : ",null,null,null,null,null,null,null,null,null,null,"Coût marginal","F","DR",null,{"$f":"IF(#REF!=\"Coût marginal\",1,2)","v":{"$error":"#REF!"}},null,null,"EA "]
[]
[null,null,null,"Catégorie de partenaire",null,null,"Coût Marginal"]
[]
["RELEVE RECAPITULATIF DES DEPENSES PAR POSTES",null,null,null,null,null,null,null,null,null,null,null,null,null,null,null,"MC","Laboratoire Public","Cat 2",1.04,null,"ERTint"]
[null,null,"Personnels",null,{"$f":"A66","v":"Matériels et instruments"},{"$f":"A81","v":"Bâtiments et terrains"},{"$f":"A92","v":"Prestations de service/DPI"},{"$f":"A106","v":"Frais généraux non forfaitisés"},"Total",null,null,null,null,null,null,null,"MC","Fondation","Cat 3",2.04,null,"ERTint"]
[null,null,"Décharge d'enseignement","Personnels NON permanents avec financement ANR  ",null,null,null,null,null,null,null,null,null,null,null,null,null,"Divers public"]
[null,null,{"$f":"I49","v":0},{"$f":"I64","v":0},{"$f":"I79","v":0},{"$f":"J90","v":0},{"$f":"I104","v":0},{"$f":"I111","v":0},{"$f":"B18+C18+D18+E18+F18+G18+H18","v":0},null,null,null,null,null,null,null,"MC","Divers public","Cat 4",3.04,null,"ERTint"]
[null,null,null,null,null,null,null,null,null,null,null,null,null,null,null,null,"MC","Divers public","Cat 5",4.04,null,"ERTint"]
[null,null,null,null,null,null,null,null,null,null,null,null,null,null,null,null,"MC","Divers public","Cat 6",5.04,null,"ERTint"]
[null,null,null,"Frais d'environnement (8%)",0.08,{"$f":"IF(E21>8%,\"MAX 8%\",E21*(C18+D18+E18+F18+G18+H18))","v":0},null,"Coût déclaré (€)",{"$f":"IF(E21>8%,0,(C18+D18+E18+F18+G18+H18)+F23)","v":0},null,null,null,null,null,null,null,"MC","Divers public","Cat 7",6.04,null,"ERTint"]
[null,null,null,null,null,null,null,null,null,null,null,null,null,null,null,null,"MC","Divers public","Cat 8",7.04,null,"ERTint"]
[null,null,null,"Total des frais",null,{"$f":"IF(OR(F21=\"\",F21=\"MAX 8%\"),0,F21)","v":0},null,"Montant total des dépenses éligibles (€)",{"$f":"IF(I21=0,0,(C18+D18+E18+F18+G18+H18)+F23)","v":0},null,null,null,null,null,null,null,null,"PME autre que micro-entreprise",null,null,null,"INRA "]
[null,null,null,null,null,null,null,null,null,null,null,null,null,null,null,null,null,null,null,null,null,"UMR_D"]
[null,null,null,null,null,null,null,"Taux d'aide demandé (%)",1,null,null,null,null,null,null,null,null,null,null,null,null,"IRD "]
[null,null,null,null,null,null,null,null,null,null,null,null,null,null,null,null,null,null,null,null,null,"UMR_E"]
[null,null,null,null,null,null,null,null,null,null,null,null,null,null,null,null,null,"sigle_naturejuridique (finir la liste par Autre)","Libelle_naturejuridique",null,null,"CEA"]
[null,null,null,null,null,null,null,null,null,null,null,null,null,null,null,null,null,"EPA","Etablissements publics à caractère administratif",null,null,"UMR_M"]
[null,null,null,null,null,null,null,null,null,null,null,null,null,null,null,null,null,"EPCSP","Etablissements publics à caractère scientifique, culturel et professionnel.",null,null,"IFREME"]
[null,"Application du taux d'aide au montant total des dépenses éligibles (€)",null,null,null,{"$f":"IF(I23=\"\",\"\",I25*I23)","v":0},null,null,null,null,null,null,null,null,null,null,null,"EPIC","Etablissements publics à caractère industriel et commercial",null,null,"UMR_C"]
[null,null,null,null,null,null,null,null,null,null,null,null,null,null,null,null,null,"EPST","Etablissements publics à caractère scientifique et technologique ",null,null,"UMR_I"]
[null,null,null,null,"dont",{"$f":"I132","v":0},"au titre de la facturation interne ",null,null,null,null,null,null,null,null,null,null,"GIP","Groupements d'intérêt public ",null,null,"INRIA"]
[null,null,null,null,null,{"$f":"I123","v":0},"au titre de la facturation entre partenaires ",null,null,null,null,null,null,null,null,null,null,"Fondation","",null,null,"UMR_F"]
[]
[null,null,null,null,"dont",{"$f":"I144","v":0},"au titre de la facturation liée à la publication scientifique"]
[null,null,null,null,null,{"$f":"I153","v":0},"au titre de la facturation liée aux données de la recherche"]
[]
[null,null,null,null,null,null,null,null,null,null,null,null,null,null,null,null,null,"Ecoles françaises à l'étranger ","",null,null,"UMR_T "]
[null,null,null,null,null,null,null,null,null,null,null,null,null,null,null,null,null,"Grand établissement","",null,null,"UMR_S"]
[null,null,null,null,null,null,null,null,null,null,null,null,null,null,null,null,null,"EURL","Entreprise Unipersonnelle à Responsabilité Limitée",null,null,"EMI"]
[null,null,null,null,null,null,null,null,null,null,null,null,null,null,null,"SA","Société Anonyme",null,null,"ERM"]
["Détails des catégories de dépenses éligibles",null,null,null,null,null,null,null,null,null,null,null,null,null,null,"SARL","Société A Responsabilité Limitée",null,null,"U"]
[null,null,null,null,null,null,null,null,null,null,null,null,null,null,null,"SAS","Société Anonyme Simplifiée ",null,null,"EPI"]
["Décharge d'enseignement",null,null,null,null,null,null,null,null,null,null,null,null,null,null,"Autre"]
[null,"Catégorie de personnel",null,"Nom / Prénom",null,null,"Coût mensuel","Personne.mois","Coût total"]
[null,"JCJC",null,null,null,null,null,null,{"$f":"G46*H46","v":0}]
[null,null,null,null,null,null,null,null,{"$f":"G47*H47","v":0}]
[null,null,null,null,null,null,null,null,0]
[null,"Total",null,null,null,null,{"$f":"SUM(G46:G48)","v":0},0,{"$f":"SUM(I46:I48)","v":0}]
[]
["Personnels NON permanents avec financement ANR  "]
[null,"Catégorie de personnel",null,"Nom / Prénom",null,null,"Coût mensuel","Personne.mois","Coût total"]
[null,"Chercheur",null,null,null,null,null,null,{"$f":"G53*H53","v":0}]
[null,"Ingénieur de recherche",null,null,null,null,null,null,{"$f":"G54*H54","v":0}]
[null,"Ingénieur d'étude",null,null,null,null,null,null,0]
[null,"Technicien",null,null,null,null,null,null,0]
[null,"Doctorant",null,null,null,null,null,null,0]
[null,"Post doc",null,null,null,null,null,null,0]
[null,null,null,null,null,null,null,null,0]
[null,null,null,null,null,null,null,null,0]
[null,null,null,null,null,null,null,null,0]
[null,null,null,null,null,null,null,null,0]
[null,null,null,null,null,null,null,null,0]
[null,"Total",null,null,null,null,{"$f":"SUM(G53:G63)","v":0},{"$f":"SUM(H53:H63)","v":0},{"$f":"SUM(I53:I63)","v":0}]
[]
["Matériels et instruments"]
[null,"Nature de dépenses",null,"Description des dépenses",null,null,null,"Date d'acquisition","Montant(€)**"]
[null,"Acquisitions"]
[null,"Locations"]
[null,"Consommables « scientifiques » (liés à l’utilisation des instruments et matériels)"]
[null,"Coût d’adaptation ou d’évolution d’un matériel/instrument existant"]
[null,"Coût de maintenance /révision/ entretien"]
[null,"Coût de transport"]
[null,"Coût d’installation"]
[]
[]
[]
[null,"Autres à préciser"]
[null,"Total",null,null,null,null,null,null,{"$f":"SUM(I68:I78)","v":0}]
[]
["Bâtiments et terrains"]
[null,"Nature de dépenses",null,"Description des dépenses",null,"Montant (€)**","Date d'acquisition","Amortissement"]
[null,null,null,null,null,null,null,"Durée totale d'amortissement (mois)","Durée d'utilisation dans le projet (2) \n(mois)","Montant de l'amortissement (€)"]
[null,"Location de nouveaux locaux/terrains non existants préalablement au projet parmi les bâtiments et terrains du bénéficiaire)",null,null,null,null,null,null,null,{"$f":"IF(H84=\"\",0,F84*(I84/H84))","v":0}]
[null,"Aménagement de locaux/terrains préexistants",null,null,null,null,null,null,null,{"$f":"IF(H85=\"\",0,F85*(I85/H85))","v":0}]
[null,null,null,null,null,null,null,null,null,{"$f":"IF(H86=\"\",0,F86*(I86/H86))","v":0}]
[null,null,null,null,null,null,null,null,null,0]
[null,null,null,null,null,null,null,null,null,0]
[null,"Autres à préciser",null,null,null,null,null,null,null,{"$f":"IF(H89=\"\",0,F89*(I89/H89))","v":0}]
[null,"Total",null,null,null,{"$f":"SUM(F84:F89)","v":0},null,null,null,{"$f":"SUM(J84:J89)","v":0}]
[]
["Prestations de service/DPI",null,null,null,null,null,null,null,null,null,null,null,null,null,null,null,null,null,null,null,null,"Attention pas d'amortissements pour les publiques"]
[null,"Nom du fournisseur",null,"Description des prestations",null,null,null,"Date du service fait","Montant (€)**",{"$f":"IF(I104> F30*0.5,\"ALERTE : Plus de 50 % de l'aide calculée\",\" \")","v":" "}]
[]
[]
[]
[]
[]
[]
[]
[]
[]
[]
[null,null,null,"Total",null,null,null,null,{"$f":"SUM(I94:I103)","v":0}]
[]
["Frais généraux non forfaitisés"]
[null,"Nature de dépenses",null,"Description des dépenses",null,null,null,null,"Montant (€)**"]
[]
[]
[]
[null,null,null,"Total",null,null,null,null,{"$f":"SUM(I108:I110)","v":0}]
[]
["La facturation entre partenaire et interne concernent toutes les catégories de dépenses à l'exception des dépenses de personnels."]
["Ces deux rubriques \"facturation\" sont des données récapitulatives et ne seront pas comptabilisées dans les dépenses du projet si elles sont déclarées uniquement ci-dessous."]
[]
[null,"Facturation entre partenaire"]
[null,"Nom",null,"Prestations",null,null,null,null,"Montant (€)**"]
["Dont"]
[]
[]
[]
[]
[null,null,null,"Total",null,null,null,null,{"$f":"SUM(I118:I122)","v":0}]
[]
[null,"Facturation interne "]
[null,"Nom du partenaire",null,"Prestations",null,null,null,null,"Montant (€)**"]
[]
[]
[]
[]
[]
[null,null,null,"Total",null,null,null,null,{"$f":"SUM(I127:I131)","v":0}]
[]
["Ces deux rubriques \"facturation\" sont des données récapitulatives de dépenses déclarées dans les catégories de dépenses principales ci-dessus"]
["et ne seront pas comptabilisées dans les dépenses du projet si elles sont déclarées uniquement ci-dessous"]
[]
[null,"Facturation liée à la publication scientifique"]
[null,"Nom du fournisseur",null,"Nature de la dépense",null,"Description",null,null,"Montant (€)**"]
["Dont"]
[]
[]
[]
[]
[null,null,null,"Total",null,null,null,null,{"$f":"SUM(I139:I143)","v":0}]
[]
[null,"Facturation liée aux données de la recherche"]
[null,"Nom du fournisseur",null,"Nature de la dépense",null,"Description",null,null,"Montant (€)**"]
[]
[]
[]
[]
[]
[null,null,null,"Total",null,null,null,null,{"$f":"SUM(I148:I152)","v":0}]
[]
[null,"Signature originale de l'agent comptable*\n\n\n\n\n\n\nNom et qualité du signataire\nCachet du partenaire",null,null,null,null,"Signature originale de la personne habilitée à représenter\njuridiquement le partenaire*\n\n\n\n\n\nNom et qualité du signataire\nCachet du partenaire"]
[]
["NOTA : les documents justificatifs de dépenses sont conservés pendant 10 ans par le partenaire afin de pouvoir les présenter à tout contrôle de l'ANR."]
[]
[null,"Toutes les factures seront à justifier en cas d'audit "]
["(*) Représentant légal ou personne ayant reçu délégation de signature du représentant légal. Dans ce cas, préciser : \"Pour (qualité du représentant légal) et par délégation\"."]
["(**)  Montant incluant la TVA non récupérable."]

{"sheet":"Formulaire RJD interm _Entr ","index":2,"n_rows":47,"n_cols":13,"rows_kept":47,"cut":false,"hidden":false,"merged":[[15,1,15,2],[0,0,0,1],[15,4,16,4],[5,4,5,7],[6,4,6,7],[7,4,7,7],[12,6,12,7],[0,2,0,7],[3,4,3,5],[30,5,39,7],[15,3,16,3],[15,5,16,5],[15,6,16,6],[15,7,16,7]]}
[null,null,"Relevé des dépenses afférentes à l'acte attributif"]
[]
[]
[null,null,null,"Type de relevé de dépenses : ","INTERMEDIAIRE"]
[]
[null,null,"Acronyme du projet : "]
[null,null,"Bénéficiaire de la convention : ",null,null,null,null,null,null,null,null,null,"Divers privé"]
[null,null,"N° de l'acte attributif : ",null,null,null,null,null,null,null,null,null,"TPE / PME"]
[null,null,"Période du relevé de dépenses :",null,"Date début ",null,"Date fin",null,null,null,null,null,"Entreprise autre que TPE ou PME"]
[null,null,null,null,null,null,null,null,null,null,null,null,"Association"]
[null,null,"Date du présent relevé : "]
[]
[null,null,"Catégorie de partenaire",null,null,null,"Coût complet"]
[]
["RELEVE RECAPITULATIF DES DEPENSES PAR POSTES"]
[null,"Personnels ",null,"Matériels et instruments","Bâtiments et terrains","Prestations de service/DPI","Frais généraux non forfaitisés","Total"]
[null,"Personnels permanents ","Personnels NON permanents avec financement ANR  "]
[null,null,null,null,null,null,null,{"$f":"B18+C18+D18+E18+F18+G18","v":0}]
[]
[]
[]
[null,null,"Frais de personnel (Max 68%)",null,{"$f":"IF(D22>68%,\"MAX 68%\",D22*(B18+C18))","v":0},null,"Coût complet (€)",{"$f":"IF(OR(D22>68%,D24>7%),0,H18+E26)","v":0}]
[]
[null,null,"Autres dépenses(Max 7%)",null,{"$f":"IF(D24>7%,\"MAX 7%\",D24*(SUM(D18:G18)))","v":0},null,"Montant total des dépenses éligibles (€)",{"$f":"IF(H22=0,0,B18+C18+D18+E18+F18+G18+E26)","v":0}]
[]
[null,null,"Total des frais",null,{"$f":"IF(OR(E22=\"MAX 68%\",E24=\"MAX 7%\"),\"\",E22+E24)","v":0},null,"Taux d'aide demandé (%)"]
[]
[null,null,null,null,null,null,"Application du taux d'aide au montant total des dépenses éligibles (€)",{"$f":"H24*H26","v":0}]
[]
[]
[null,null,null,null,null,"Signature originale de la personne habilitée à représenter\njuridiquement le partenaire*\n\n\n\n\nNom et qualité du signataire\nCachet du partenaire"]
[]
[]
[]
[]
[]
[]
[]
[]
[]
[]
[]
[]
["NOTA : les documents justificatifs de dépenses sont conservés pendant 10 ans par le partenaire afin de pouvoir les présenter à tout contrôle de l'ANR."]
["Toutes les factures seront à justifier en cas d'audit "]
["(*) Représentant légal ou personne ayant reçu délégation de signature du représentant légal. Dans ce cas, préciser : \"Pour (qualité du représentant légal) et par délégation\"."]
["(**)  Montant incluant la TVA non récupérable."]

{"sheet":"Formulaire RJD solde _Entr ","index":3,"n_rows":174,"n_cols":13,"rows_kept":174,"cut":false,"hidden":false,"merged":[[114,4,114,6],[150,0,162,0],[153,3,153,4],[153,5,153,7],[160,1,160,2],[160,3,160,4],[160,5,160,7],[161,1,161,2],[161,3,161,4],[161,5,161,7],[162,1,162,2],[162,3,162,4],[162,5,162,7],[164,4,164,7],[154,1,154,2],[154,3,154,4],[154,5,154,7],[158,1,158,2],[158,3,158,4],[158,5,158,7],[159,1,159,2],[159,3,159,4],[159,5,159,7],[163,1,163,2],[163,3,163,4],[163,5,163,7],[134,4,134,7],[143,4,143,7],[155,4,155,7],[120,1,120,3],[120,4,120,7],[121,1,121,3],[121,4,121,7],[149,1,149,2],[149,3,149,4],[151,1,151,2],[151,3,151,4],[151,5,151,7],[152,1,152,2],[152,3,152,4],[152,5,152,7],[153,1,153,2],[149,5,149,7],[150,1,150,2],[150,3,150,4],[150,5,150,7],[132,1,132,3],[140,4,140,7],[82,1,82,3],[97,1,97,3],[97,4,97,5],[98,1,98,3],[98,4,98,5],[99,1,99,3],[99,4,99,5],[119,4,119,7],[128,1,128,3],[111,1,111,3],[118,4,118,7],[109,1,109,3],[110,1,110,3],[106,1,106,3],[107,1,107,3],[108,1,108,3],[87,4,87,5],[15,6,16,6],[166,1,166,4],[129,4,129,7],[130,4,130,7],[131,4,131,7],[105,1,105,3],[84,4,84,5],[85,4,85,5],[89,4,89,5],[128,4,128,7],[118,1,118,3],[100,4,100,5],[77,6,78,6],[77,7,78,7],[85,1,85,3],[112,1,112,3],[90,1,90,5],[132,4,132,7],[79,4,79,5],[129,1,129,3],[130,1,130,3],[119,1,119,3],[113,1,113,3],[114,1,114,3],[100,1,100,3],[131,1,131,3],[95,4,95,5],[96,1,96,3],[96,4,96,5],[95,1,95,3],[101,1,101,5],[104,1,104,3],[115,4,115,7],[122,4,122,7],[104,4,104,6],[105,4,105,6],[106,4,106,6],[107,4,107,6],[108,4,108,6],[109,4,109,6],[110,4,110,6],[111,4,111,6],[112,4,112,6],[113,4,113,6],[72,1,72,2],[72,3,72,5],[64,1,64,2],[65,1,65,2],[66,1,66,2],[67,1,67,2],[74,1,74,5],[77,4,78,5],[93,4,94,5],[77,1,78,3],[93,1,94,3],[89,1,89,3],[79,1,79,3],[88,1,88,3],[88,4,88,5],[80,4,80,5],[83,4,83,5],[80,1,80,3],[81,1,81,3],[83,1,83,3],[84,1,84,3],[86,1,86,3],[86,4,86,5],[87,1,87,3],[62,1,62,2],[63,1,63,2],[68,1,68,2],[68,3,68,5],[69,1,69,2],[69,3,69,5],[70,1,70,2],[70,3,70,5],[71,1,71,2],[71,3,71,5],[166,6,166,8],[104,9,115,9],[82,4,82,5],[133,1,133,3],[137,1,137,3],[138,1,138,3],[142,1,142,3],[142,4,142,7],[51,3,51,5],[52,1,52,2],[52,3,52,5],[53,1,53,2],[53,3,53,5],[54,1,54,2],[54,3,54,5],[55,1,55,2],[55,3,55,5],[73,1,73,2],[62,3,62,5],[63,3,63,5],[64,3,64,5],[65,3,65,5],[66,3,66,5],[67,3,67,5],[32,4,33,4],[3,5,3,6],[141,1,141,3],[12,6,12,8],[139,1,139,3],[140,1,140,3],[137,4,137,7],[17,2,17,3],[15,4,16,4],[15,5,16,5],[47,3,47,5],[141,4,141,7],[93,7,94,7],[93,6,94,6],[81,4,81,5],[48,3,48,5],[49,3,49,5],[48,1,48,2],[49,1,49,2],[50,1,50,2],[56,1,56,2],[61,1,61,2],[51,1,51,2],[73,3,73,5],[35,4,36,4],[129,0,139,0],[0,2,0,10],[5,5,5,8],[6,5,6,8],[7,5,7,8],[93,8,93,10],[77,8,77,10],[57,1,57,5],[61,3,61,5],[138,4,138,7],[139,4,139,7],[15,1,15,3],[50,3,50,5],[56,3,56,5],[133,4,133,7],[32,3,33,3],[16,2,16,3],[46,3,46,5],[46,1,46,2],[47,1,47,2],[43,0,43,10],[15,7,16,7],[15,8,16,8]]}
[null,null,"Relevé des dépenses afférentes à l'acte attributif"]
[]
[]
[null,null,null,null,"Type de relevé de dépenses : ","SOLDE"]
[]
[null,null,"Acronyme du projet : "]
[null,null,"Bénéficiaire de la convention : "]
[null,null,"N° de l'acte attributif : "]
[null,null,"Période du relevé de dépenses :",null,null,"Date début administrative",null,"Date fin scientifique"]
[]
[null,null,"Date du présent relevé : "]
[]
[null,null,"Catégorie de partenaire",null,null,null,"Coût complet",null,null,null,null,null,"Catégorie de partenaire"]
[null,null,null,null,null,null,null,null,null,null,null,null,"Divers privé"]
["RELEVE RECAPITULATIF DES DEPENSES PAR POSTES",null,null,null,null,null,null,null,null,null,null,null,"TPE / PME"]
[null,"Personnels ",null,null,"Matériels et instruments","Bâtiments et terrains","Prestations de service/DPI","Frais généraux non forfaitisés","Total",null,null,null,"Entreprise autre que TPE ou PME"]
[null,"Personnels permanents ","Personnels NON permanents avec financement ANR  ",null,null,null,null,null,null,null,null,null,"Association"]
[null,{"$f":"I58","v":0},{"$f":"I75","v":0},null,{"$f":"K91","v":0},{"$f":"K102","v":0},{"$f":"I116","v":0},{"$f":"I123","v":0},{"$f":"B18+C18+E18+F18+G18+H18","v":0}]
[]
[]
[]
[null,null,"Frais de personnel (Max 68%)",null,null,{"$f":"IF(E22>68%,\"MAX 68%\",E22*(B18+C18))","v":0},null,"Coût complet (€)",{"$f":"IF(OR(E22>68%,E24>7%),0,I18+F26)","v":0}]
[]
[null,null,"Autres dépenses(Max 7%)",null,null,{"$f":"IF(E24>7%,\"MAX 7%\",E24*(SUM(E18:H18)))","v":0},null,"Montant total des dépenses éligibles (€)",{"$f":"IF(I22=0,0,B18+C18+E18+F18+G18+H18+F26)","v":0}]
[]
[null,null,"Total des frais",null,null,{"$f":"IF(OR(F22=\"MAX 68%\",F24=\"MAX 7%\"),\"\",F22+F24)","v":0},null,"Taux d'aide demandé (%)"]
[]
[]
[]
[null,"Application du taux d'aide au montant total des dépenses éligibles (€)",null,null,null,{"$f":"IF(I24=\"\",\"\",I26*I24)","v":0},null,null,null,null,"OUI"]
[null,null,null,null,null,null,null,null,null,null,"NON"]
[]
[null,null,null,null,"dont",{"$f":"I144","v":0},"au titre de la facturation interne "]
[null,null,null,null,null,{"$f":"I135","v":0},"au titre de la facturation entre partenaires "]
[]
[null,null,null,null,"dont",{"$f":"I156","v":0},"au titre de la facturation liée à la publication scientifique"]
[null,null,null,null,null,{"$f":"I165","v":0},"au titre de la facturation liée aux données de la recherche"]
[]
[]
[]
["Le partenaire est-il assujetti à la TVA non récupérable ?"]
[]
[]
["Détails des catégories de dépenses éligibles"]
[]
["Personnels permanents "]
[null,"Catégorie de personnel",null,"Nom / Prénom",null,null,"Coût mensuel","Personne.mois","Coût total"]
[null,"Chercheur",null,null,null,null,null,null,{"$f":"G48*H48","v":0}]
[null,"Ingénieur de recherche",null,null,null,null,null,null,{"$f":"G49*H49","v":0}]
[null,"Ingénieur d'étude",null,null,null,null,null,null,{"$f":"G50*H50","v":0}]
[null,"Technicien",null,null,null,null,null,null,{"$f":"G51*H51","v":0}]
[null,null,null,null,null,null,null,null,{"$f":"G52*H52","v":0}]
[null,null,null,null,null,null,null,null,0]
[null,null,null,null,null,null,null,null,0]
[null,null,null,null,null,null,null,null,0]
[null,null,null,null,null,null,null,null,0]
[null,"Autre",null,null,null,null,null,null,{"$f":"G57*H57","v":0}]
[null,"Total",null,null,null,null,{"$f":"SUM(G48:G57)","v":0},{"$f":"SUM(H48:H57)","v":0},{"$f":"SUM(I48:I57)","v":0}]
[]
[]
["Personnels NON permanents avec financement ANR  "]
[null,"Catégorie de personnel",null,"Nom / Prénom",null,null,"Coût mensuel","Personne.mois","Coût total"]
[null,"Chercheur",null,null,null,null,null,null,{"$f":"G63*H63","v":0}]
[null,"Ingénieur de recherche",null,null,null,null,null,null,0]
[null,"Ingénieur d'étude",null,null,null,null,null,null,0]
[null,"Technicien",null,null,null,null,null,null,0]
[null,"Doctorant",null,null,null,null,null,null,0]
[null,"Post doc",null,null,null,null,null,null,0]
[null,null,null,null,null,null,null,null,0]
[null,null,null,null,null,null,null,null,0]
[null,null,null,null,null,null,null,null,0]
[null,null,null,null,null,null,null,null,0]
[null,null,null,null,null,null,null,null,0]
[null,"Autre",null,null,null,null,null,null,0]
[null,"Total",null,null,null,null,{"$f":"SUM(G63:G74)","v":0},{"$f":"SUM(H63:H74)","v":0},{"$f":"SUM(I63:I74)","v":0}]
[]
["Matériels et instruments"]
[null,"Nature de dépenses",null,null,"Description des dépenses",null,"Montant (€)**","Date d'acquisition","Amortissement"]
[null,null,null,null,null,null,null,null,"Durée totale d'amortissement (mois)","Durée d'utilisation dans le projet (2) \n(mois)","Montant de l'amortissement (€)"]
[null,"Acquisitions",null,null,null,null,null,null,null,null,{"$f":"IF(I80=\"\",0,G80*(J80/I80))","v":0}]
[null,"Locations",null,null,null,null,null,null,null,null,0]
[null,"Consommables « scientifiques » (liés à l’utilisation des instruments et matériels)",null,null,null,null,null,null,null,null,0]
[null,"Coût d’adaptation ou d’évolution d’un matériel/instrument existant",null,null,null,null,null,null,null,null,0]
[null,"Coût de maintenance /révision/ entretien",null,null,null,null,null,null,null,null,0]
[null,"Coût de transport",null,null,null,null,null,null,null,null,0]
[null,"Coût d’installation",null,null,null,null,null,null,null,null,0]
[null,null,null,null,null,null,null,null,null,null,0]
[null,null,null,null,null,null,null,null,null,null,0]
[null,null,null,null,null,null,null,null,null,null,0]
[null,"Autres à préciser",null,null,null,null,null,null,null,null,0]
[null,"Total",null,null,null,null,{"$f":"SUM(G80:G90)","v":0},null,null,null,{"$f":"SUM(K80:K90)","v":0}]
[]
["Bâtiments et terrains"]
[null,"Nature de dépenses",null,null,"Description des dépenses",null,"Montant (€)**","Date d'acquisition","Amortissement"]
[null,null,null,null,null,null,null,null,"Durée totale d'amortissement (mois)","Durée d'utilisation dans le projet (2) \n(mois)","Montant de l'amortissement (€)"]
[null,"Location de nouveaux locaux/terrains non existants préalablement au projet parmi les bâtiments et terrains du bénéficiaire)",null,null,null,null,null,null,null,null,{"$f":"IF(I96=\"\",0,G96*(J96/I96))","v":0}]
[null,"Aménagement de locaux/terrains préexistants",null,null,null,null,null,null,null,null,{"$f":"IF(I97=\"\",0,G97*(J97/I97))","v":0}]
[null,null,null,null,null,null,null,null,null,null,{"$f":"IF(I98=\"\",0,G98*(J98/I98))","v":0}]
[null,null,null,null,null,null,null,null,null,null,0]
[null,null,null,null,null,null,null,null,null,null,0]
[null,"Autres à préciser",null,null,null,null,null,null,null,null,{"$f":"IF(I101=\"\",0,G101*(J101/I101))","v":0}]
[null,"Total",null,null,null,null,{"$f":"SUM(G96:G101)","v":0},null,null,null,{"$f":"SUM(K96:K101)","v":0}]
[]
["Prestations de service/DPI"]
[null,"Nom du fournisseur",null,null,"Description des prestations",null,null,"Date du service fait","Montant (€)**",{"$f":"IF(I116> F30*0.5,\"ALERTE : Plus de 50 % de l'aide calculée\",\"\")","v":""}]
[]
[]
[]
[]
[]
[]
[]
[]
[]
[]
[null,null,null,null,"Total",null,null,null,{"$f":"SUM(I106:I115)","v":0}]
[]
["Frais généraux non forfaitisés"]
[null,"Nature de dépenses",null,null,"Description des prestations",null,null,null,"Montant (€)**"]
[]
[]
[]
[null,null,null,null,"Total",null,null,null,{"$f":"SUM(I120:I122)","v":0}]
[]
[]
["La facturation entre partenaire et interne concernent toutes les catégories de dépenses à l'exception des dépenses de personnels."]
["Ces deux rubriques \"facturation\" sont des données récapitulatives et ne seront pas comptabilisées dans les dépenses du projet si elles sont déclarées uniquement ci-dessous."]
[null,"Facturation entre partenaire"]
[null,"Nom",null,null,"Prestations",null,null,null,"Montant (€)**"]
["Dont"]
[]
[]
[]
[]
[null,null,null,null,"Total",null,null,null,{"$f":"SUM(I130:I134)","v":0}]
[]
[null,"Facturation interne "]
[null,"Nom du partenaire",null,null,"Prestations",null,null,null,"Montant (€)**"]
[]
[]
[]
[]
[]
[null,null,null,null,"Total",null,null,null,{"$f":"SUM(I139:I143)","v":0}]
[]
["Ces deux rubriques \"facturation\" sont des données récapitulatives de dépenses déclarées dans les catégories de dépenses principales ci-dessus"]
["et ne seront pas comptabilisées dans les dépenses du projet si elles sont déclarées uniquement ci-dessous"]
[]
[null,"Facturation liée à la publication scientifique"]
[null,"Nom du fournisseur",null,"Nature de la dépense",null,"Description",null,null,"Montant (€)**"]
["Dont"]
[]
[]
[]
[]
[null,null,null,null,"Total",null,null,null,{"$f":"SUM(I151:I155)","v":0}]
[]
[null,"Facturation liée aux données de la recherche"]
[null,"Nom du fournisseur",null,"Nature de la dépense",null,"Description",null,null,"Montant (€)**"]
[]
[]
[]
[]
[]
[null,null,null,null,"Total",null,null,null,{"$f":"SUM(I160:I164)","v":0}]
[]
[null,"Signature du comptable ***\n\n\n\n\n\n\nNom, qualité et cachet du signataire",null,null,null,null,"Signature originale de la personne habilitée à représenter\njuridiquement le partenaire*\n\n\n\n\n\nNom et qualité du signataire\nCachet du partenaire"]
[]
[]
["NOTA : les documents justificatifs de dépenses sont conservés pendant 10 ans par le partenaire afin de pouvoir les présenter à tout contrôle de l'ANR."]
[null,"Toutes les factures seront à justifier en cas d'audit "]
["(*) Représentant légal ou personne ayant reçu délégation de signature du représentant légal. Dans ce cas, préciser : \"Pour (qualité du représentant légal) et par délégation\"."]
["(**)  Montant incluant la TVA non récupérable."]
["(***) La certification par le commissaire aux comptes, un expert-comptable si le bénéficiaire en est doté ou tout autre organisme de contrôle le cas échant peut être requise sur demande de l’ANR "]